[Event "Titled Tuesday Blitz May 4 2021"]
[White "Zeydan, Salih"]
[Black "Necula, Iulian"]
[WhiteFideId "6361722"]
[BlackFideId "1232380"]
[WhiteElo "1988"]
[BlackElo "1776"]
[Result "1-0"]
[Round "04"]
[TimeControl "180+1"]
[Date "2021.05.04"]
[WhiteClock "0:00:09"]
[BlackClock "0:00:08"]

1. e4 {[%clk 0:03:00]}  g6 {[%clk 0:02:59]} 2. d4 {[%clk 0:02:59]}  c6 {[%clk 0:03:00]} 3. h3 {[%clk 0:02:54]}  d5 {[%clk 0:03:01]} 4. Nc3 {[%clk 0:02:54]}  dxe4 {[%clk 0:03:01]} 5. Nxe4 {[%clk 0:02:55]}  Nf6 {[%clk 0:03:01]} 6. Nxf6+ {[%clk 0:02:48]}  exf6 {[%clk 0:03:02]} 7. Nf3 {[%clk 0:02:44]}  Bg7 {[%clk 0:03:02]} 8. Bd3 {[%clk 0:02:44]}  O-O {[%clk 0:03:01]} 9. O-O {[%clk 0:02:44]}  Nd7 {[%clk 0:03:00]} 10. c4 {[%clk 0:02:43]}  f5 {[%clk 0:03:00]} 11. Bg5 {[%clk 0:02:42]}  Qc7 {[%clk 0:02:56]} 12. Qd2 {[%clk 0:02:41]}  Nf6 {[%clk 0:02:49]} 13. Rfe1 {[%clk 0:02:32]}  Be6 {[%clk 0:02:48]} 14. Bf4 {[%clk 0:02:24]}  Qd7 {[%clk 0:02:47]} 15. Ng5 {[%clk 0:02:18]}  Rfe8 {[%clk 0:02:40]} 16. Nxe6 {[%clk 0:02:05]}  Rxe6 {[%clk 0:02:35]} 17. Rxe6 {[%clk 0:02:05]}  fxe6 {[%clk 0:02:33]} 18. Bc2 {[%clk 0:01:51]}  Rd8 {[%clk 0:02:32]} 19. Rd1 {[%clk 0:01:47]}  Nh5 {[%clk 0:02:06]} 20. Bg5 {[%clk 0:01:41]}  Re8 {[%clk 0:01:52]} 21. Bb3 {[%clk 0:01:23]}  Kh8 {[%clk 0:01:51]} 22. Qe3 {[%clk 0:00:54]}  Nf6 {[%clk 0:01:47]} 23. f3 {[%clk 0:00:46]}  a6 {[%clk 0:01:34]} 24. Bh6 {[%clk 0:00:36]}  Rd8 {[%clk 0:01:27]} 25. Bxg7+ {[%clk 0:00:35]}  Kxg7 {[%clk 0:01:27]} 26. Qe5 {[%clk 0:00:35]}  Qd6 {[%clk 0:01:22]} 27. Kf2 {[%clk 0:00:33]}  Qxe5 {[%clk 0:01:20]} 28. dxe5 {[%clk 0:00:34]}  Nd7 {[%clk 0:01:05]} 29. Rd6 {[%clk 0:00:32]}  Kf7 {[%clk 0:01:02]} 30. c5 {[%clk 0:00:30]}  Ke7 {[%clk 0:00:24]} 31. Rxe6+ {[%clk 0:00:30]}  Kf8 {[%clk 0:00:24]} 32. Rd6 {[%clk 0:00:19]}  Ke7 {[%clk 0:00:24]} 33. Re6+ {[%clk 0:00:10]}  Kf8 {[%clk 0:00:24]} 34. Rd6 {[%clk 0:00:09]}  Ke7 {[%clk 0:00:25]} 35. f4 {[%clk 0:00:08]}  Nxc5 {[%clk 0:00:24]} 36. Rxd8 {[%clk 0:00:08]}  Kxd8 {[%clk 0:00:24]} 37. Bg8 {[%clk 0:00:08]}  h6 {[%clk 0:00:24]} 38. Bh7 {[%clk 0:00:08]}  Nd3+ {[%clk 0:00:20]} 39. Ke3 {[%clk 0:00:08]}  Nxb2 {[%clk 0:00:21]} 40. Bxg6 {[%clk 0:00:08]}  Nc4+ {[%clk 0:00:20]} 41. Kd4 {[%clk 0:00:08]}  Nd2 {[%clk 0:00:20]} 42. Bxf5 {[%clk 0:00:08]}  Nf1 {[%clk 0:00:19]} 43. g4 {[%clk 0:00:06]}  Ke7 {[%clk 0:00:19]} 44. Be4 {[%clk 0:00:07]}  Ng3 {[%clk 0:00:19]} 45. Bf3 {[%clk 0:00:06]}  b6 {[%clk 0:00:19]} 46. Ke3 {[%clk 0:00:07]}  c5 {[%clk 0:00:19]} 47. Kf2 {[%clk 0:00:07]}  b5 {[%clk 0:00:11]} 48. Kxg3 {[%clk 0:00:08]}  c4 {[%clk 0:00:12]} 49. Kf2 {[%clk 0:00:08]}  b4 {[%clk 0:00:12]} 50. Ke3 {[%clk 0:00:09]}  a5 {[%clk 0:00:12]} 51. Kd4 {[%clk 0:00:09]}  c3 {[%clk 0:00:12]} 52. Be4 {[%clk 0:00:09]}  Ke6 {[%clk 0:00:11]} 53. Kc4 {[%clk 0:00:09]}  Kd7 {[%clk 0:00:08]} 54. Kb5 {[%clk 0:00:09]} 1-0


[Site "https://www.chess.com"]

[Event "Titled Tuesday Blitz May 4 2021"]
[White "Zhurbinsky, David"]
[Black "ValeriyGrinev"]
[WhiteFideId "2072904"]
[WhiteElo "2480"]
[BlackElo "2619"]
[Result "1/2-1/2"]
[Round "04"]
[TimeControl "180+1"]
[Date "2021.05.04"]
[WhiteClock "0:00:58"]
[BlackClock "0:02:31"]

1. e4 {[%clk 0:03:00]}  c5 {[%clk 0:02:56]} 2. Nf3 {[%clk 0:02:59]}  d6 {[%clk 0:02:55]} 3. d4 {[%clk 0:02:57]}  cxd4 {[%clk 0:02:56]} 4. Nxd4 {[%clk 0:02:58]}  Nf6 {[%clk 0:02:56]} 5. f3 {[%clk 0:02:58]}  g6 {[%clk 0:02:56]} 6. c4 {[%clk 0:02:58]}  Bg7 {[%clk 0:02:56]} 7. Nc3 {[%clk 0:02:58]}  O-O {[%clk 0:02:56]} 8. Be3 {[%clk 0:02:59]}  Nc6 {[%clk 0:02:57]} 9. Be2 {[%clk 0:02:59]}  Nxd4 {[%clk 0:02:57]} 10. Bxd4 {[%clk 0:03:00]}  Be6 {[%clk 0:02:56]} 11. O-O {[%clk 0:03:00]}  Qa5 {[%clk 0:02:57]} 12. Rc1 {[%clk 0:03:00]}  Rfc8 {[%clk 0:02:57]} 13. b3 {[%clk 0:02:59]}  a6 {[%clk 0:02:57]} 14. f4 {[%clk 0:02:59]}  b5 {[%clk 0:02:57]} 15. f5 {[%clk 0:02:52]}  Bd7 {[%clk 0:02:56]} 16. Bxf6 {[%clk 0:02:46]}  Bxf6 {[%clk 0:02:49]} 17. Nd5 {[%clk 0:02:42]}  Bg5 {[%clk 0:02:49]} 18. Rc2 {[%clk 0:02:36]}  bxc4 {[%clk 0:02:47]} 19. Bxc4 {[%clk 0:02:34]}  Bb5 {[%clk 0:02:43]} 20. fxg6 {[%clk 0:02:13]}  hxg6 {[%clk 0:02:43]} 21. Qg4 {[%clk 0:02:01]}  Bxc4 {[%clk 0:02:40]} 22. bxc4 {[%clk 0:01:54]}  Bf6 {[%clk 0:02:30]} 23. Nxf6+ {[%clk 0:01:44]}  exf6 {[%clk 0:02:31]} 24. Rxf6 {[%clk 0:01:42]}  Rab8 {[%clk 0:02:31]} 25. Rxg6+ {[%clk 0:01:23]}  fxg6 {[%clk 0:02:31]} 26. Qxg6+ {[%clk 0:01:24]}  Kh8 {[%clk 0:02:31]} 27. Qh6+ {[%clk 0:01:17]}  Kg8 {[%clk 0:02:32]} 28. Qg6+ {[%clk 0:01:10]}  Kh8 {[%clk 0:02:31]} 29. Qh6+ {[%clk 0:00:57]}  Kg8 {[%clk 0:02:31]} 30. Qg6+ {[%clk 0:00:58]} 1/2-1/2


[Site "https://www.chess.com"]

[Event "Titled Tuesday Blitz May 4 2021"]
[White "Zverev, Lev"]
[Black "Timmermans, Mark"]
[WhiteFideId "24250775"]
[BlackFideId "1026399"]
[WhiteElo "2591"]
[BlackElo "2774"]
[Result "0-1"]
[Round "04"]
[TimeControl "180+1"]
[Date "2021.05.04"]
[WhiteClock "0:00:11"]
[BlackClock "0:00:12"]

1. e4 {[%clk 0:03:00]}  e5 {[%clk 0:02:59]} 2. Nf3 {[%clk 0:03:00]}  Nc6 {[%clk 0:02:59]} 3. Bb5 {[%clk 0:03:00]}  f5 {[%clk 0:02:59]} 4. d3 {[%clk 0:02:58]}  fxe4 {[%clk 0:02:59]} 5. dxe4 {[%clk 0:02:59]}  Nf6 {[%clk 0:02:59]} 6. Nc3 {[%clk 0:02:59]}  Bb4 {[%clk 0:02:59]} 7. Bg5 {[%clk 0:02:54]}  Bxc3+ {[%clk 0:03:00]} 8. bxc3 {[%clk 0:02:53]}  d6 {[%clk 0:03:00]} 9. O-O {[%clk 0:02:52]}  O-O {[%clk 0:03:00]} 10. Bh4 {[%clk 0:02:47]}  Kh8 {[%clk 0:03:00]} 11. h3 {[%clk 0:02:44]}  Qe8 {[%clk 0:02:58]} 12. Bxf6 {[%clk 0:02:41]}  Rxf6 {[%clk 0:02:57]} 13. Nh2 {[%clk 0:02:41]}  Qg6 {[%clk 0:02:56]} 14. Qd3 {[%clk 0:02:38]}  Be6 {[%clk 0:02:48]} 15. Bc4 {[%clk 0:02:30]}  Bd7 {[%clk 0:02:47]} 16. Bd5 {[%clk 0:02:26]}  Raf8 {[%clk 0:02:46]} 17. Rab1 {[%clk 0:02:24]}  b6 {[%clk 0:02:45]} 18. Ng4 {[%clk 0:02:12]}  Bxg4 {[%clk 0:02:30]} 19. hxg4 {[%clk 0:02:13]}  Ne7 {[%clk 0:02:30]} 20. f3 {[%clk 0:02:11]}  a5 {[%clk 0:02:24]} 21. a4 {[%clk 0:02:06]}  Qg5 {[%clk 0:02:01]} 22. Bb3 {[%clk 0:02:01]}  h5 {[%clk 0:01:55]} 23. gxh5 {[%clk 0:01:58]}  Rh6 {[%clk 0:01:55]} 24. Kf2 {[%clk 0:01:38]}  Rxh5 {[%clk 0:01:44]} 25. Rh1 {[%clk 0:01:37]}  Rf6 {[%clk 0:01:44]} 26. Rxh5+ {[%clk 0:01:31]}  Qxh5 {[%clk 0:01:45]} 27. Qc4 {[%clk 0:01:31]}  Qh4+ {[%clk 0:01:44]} 28. Ke2 {[%clk 0:01:26]}  c6 {[%clk 0:01:34]} 29. Rg1 {[%clk 0:01:09]}  Qh2 {[%clk 0:01:29]} 30. Kf1 {[%clk 0:01:05]}  d5 {[%clk 0:01:30]} 31. exd5 {[%clk 0:01:04]}  Nxd5 {[%clk 0:01:31]} 32. Qe4 {[%clk 0:00:59]}  Rf4 {[%clk 0:01:26]} 33. Qg6 {[%clk 0:00:45]}  e4 {[%clk 0:01:13]} 34. Qxc6 {[%clk 0:00:25]}  Ne3+ {[%clk 0:00:26]} 35. Ke2 {[%clk 0:00:19]}  Rf8 {[%clk 0:00:25]} 36. Qxe4 {[%clk 0:00:08]}  Nxg2 {[%clk 0:00:25]} 37. Kf1 {[%clk 0:00:04]}  Nh4 {[%clk 0:00:22]} 38. Qg4 {[%clk 0:00:02]}  Rxf3+ {[%clk 0:00:19]} 39. Ke1 {[%clk 0:00:03]}  Nf5 {[%clk 0:00:14]} 40. Qxf3 {[%clk 0:00:02]}  Qxg1+ {[%clk 0:00:14]} 41. Ke2 {[%clk 0:00:03]}  g6 {[%clk 0:00:11]} 42. Qh3+ {[%clk 0:00:02]}  Kg7 {[%clk 0:00:11]} 43. Qf3 {[%clk 0:00:03]}  Qh2+ {[%clk 0:00:10]} 44. Kd3 {[%clk 0:00:03]}  Qc7 {[%clk 0:00:11]} 45. Qd5 {[%clk 0:00:03]}  Kh6 {[%clk 0:00:10]} 46. Qh1+ {[%clk 0:00:03]}  Kg5 {[%clk 0:00:10]} 47. Qg2+ {[%clk 0:00:04]}  Ng3 {[%clk 0:00:10]} 48. Qd2+ {[%clk 0:00:05]}  Kf6 {[%clk 0:00:09]} 49. Qf2+ {[%clk 0:00:06]}  Nf5 {[%clk 0:00:10]} 50. Qd4+ {[%clk 0:00:06]}  Nxd4 {[%clk 0:00:10]} 51. cxd4 {[%clk 0:00:07]}  Qd6 {[%clk 0:00:10]} 52. c4 {[%clk 0:00:08]}  Qb4 {[%clk 0:00:10]} 53. c5 {[%clk 0:00:09]}  Qxb3+ {[%clk 0:00:10]} 54. Ke4 {[%clk 0:00:10]}  bxc5 {[%clk 0:00:11]} 55. dxc5 {[%clk 0:00:11]}  Qc4+ {[%clk 0:00:11]} 56. Ke3 {[%clk 0:00:11]}  Qxc5+ {[%clk 0:00:12]} 0-1


[Site "https://www.chess.com"]

[Event "Titled Tuesday Blitz May 4 2021"]
[White "freshfoodcompany"]
[Black "Radu, David Cr."]
[BlackFideId "1265717"]
[WhiteElo "2372"]
[BlackElo "1596"]
[Result "1-0"]
[Round "04"]
[TimeControl "180+1"]
[Date "2021.05.04"]
[WhiteClock "0:00:08"]
[BlackClock "0:00:08"]

1. d4 {[%clk 0:03:00]}  d5 {[%clk 0:02:59]} 2. c4 {[%clk 0:03:01]}  e6 {[%clk 0:02:59]} 3. Nf3 {[%clk 0:03:01]}  a6 {[%clk 0:02:58]} 4. Bg5 {[%clk 0:02:59]}  Be7 {[%clk 0:02:56]} 5. Bxe7 {[%clk 0:02:58]}  Nxe7 {[%clk 0:02:57]} 6. Nbd2 {[%clk 0:02:54]}  O-O {[%clk 0:02:56]} 7. g3 {[%clk 0:02:53]}  dxc4 {[%clk 0:02:55]} 8. Bg2 {[%clk 0:02:51]}  Nbc6 {[%clk 0:02:50]} 9. Nxc4 {[%clk 0:02:50]}  b5 {[%clk 0:02:49]} 10. Nfe5 {[%clk 0:02:37]}  Bb7 {[%clk 0:02:21]} 11. Nxc6 {[%clk 0:02:33]}  Bxc6 {[%clk 0:02:20]} 12. Bxc6 {[%clk 0:02:30]}  Nxc6 {[%clk 0:02:21]} 13. Ne5 {[%clk 0:02:21]}  Nxd4 {[%clk 0:02:20]} 14. O-O {[%clk 0:02:20]}  c5 {[%clk 0:02:18]} 15. Qd2 {[%clk 0:02:12]}  Qc7 {[%clk 0:02:15]} 16. Nd3 {[%clk 0:02:06]}  Rad8 {[%clk 0:02:05]} 17. Rac1 {[%clk 0:02:03]}  c4 {[%clk 0:02:02]} 18. Qe3 {[%clk 0:01:52]}  Qb7 {[%clk 0:01:45]} 19. Nc5 {[%clk 0:01:37]}  Qb6 {[%clk 0:01:37]} 20. Ne4 {[%clk 0:01:30]}  e5 {[%clk 0:01:27]} 21. Ng5 {[%clk 0:01:23]}  Rfe8 {[%clk 0:01:10]} 22. Rfd1 {[%clk 0:01:03]}  f5 {[%clk 0:00:53]} 23. Nf3 {[%clk 0:00:57]}  Qf6 {[%clk 0:00:45]} 24. Kg2 {[%clk 0:00:33]}  Nc6 {[%clk 0:00:32]} 25. Rxd8 {[%clk 0:00:19]}  Rxd8 {[%clk 0:00:33]} 26. b3 {[%clk 0:00:19]}  e4 {[%clk 0:00:26]} 27. Ne1 {[%clk 0:00:17]}  Ne5 {[%clk 0:00:23]} 28. bxc4 {[%clk 0:00:16]}  Nxc4 {[%clk 0:00:20]} 29. Qc5 {[%clk 0:00:15]}  g6 {[%clk 0:00:12]} 30. e3 {[%clk 0:00:14]}  Qd6 {[%clk 0:00:11]} 31. Qxd6 {[%clk 0:00:12]}  Rxd6 {[%clk 0:00:12]} 32. Nc2 {[%clk 0:00:10]}  Rd2 {[%clk 0:00:12]} 33. Kf1 {[%clk 0:00:08]}  Kf7 {[%clk 0:00:10]} 34. Ke1 {[%clk 0:00:07]}  Ke7 {[%clk 0:00:09]} 35. Na3 {[%clk 0:00:05]}  Rxa2 {[%clk 0:00:07]} 36. Nxc4 {[%clk 0:00:06]}  bxc4 {[%clk 0:00:08]} 37. Rxc4 {[%clk 0:00:06]}  Ra1+ {[%clk 0:00:08]} 38. Ke2 {[%clk 0:00:07]}  Kd7 {[%clk 0:00:08]} 39. Rd4+ {[%clk 0:00:06]}  Ke6 {[%clk 0:00:08]} 40. Rc4 {[%clk 0:00:06]}  Kd6 {[%clk 0:00:08]} 41. Rd4+ {[%clk 0:00:06]}  Ke7 {[%clk 0:00:06]} 42. Rb4 {[%clk 0:00:05]}  Kf6 {[%clk 0:00:05]} 43. Rb6+ {[%clk 0:00:05]}  Kg5 {[%clk 0:00:04]} 44. Rb7 {[%clk 0:00:03]}  h5 {[%clk 0:00:03]} 45. Ra7 {[%clk 0:00:03]}  a5 {[%clk 0:00:02]} 46. h4+ {[%clk 0:00:03]}  Kg4 {[%clk 0:00:02]} 47. Ra6 {[%clk 0:00:03]}  a4 {[%clk 0:00:02]} 48. Rxg6+ {[%clk 0:00:03]}  Kh3 {[%clk 0:00:03]} 49. Ra6 {[%clk 0:00:03]}  a3 {[%clk 0:00:03]} 50. Ra5 {[%clk 0:00:03]}  a2 {[%clk 0:00:04]} 51. Ra6 {[%clk 0:00:03]}  Kh2 {[%clk 0:00:02]} 52. Ra7 {[%clk 0:00:03]}  Kg2 {[%clk 0:00:02]} 53. Ra8 {[%clk 0:00:03]}  Rf1 {[%clk 0:00:03]} 54. Kd2 {[%clk 0:00:02]}  Rxf2+ {[%clk 0:00:04]} 55. Kc3 {[%clk 0:00:02]}  Rf3 {[%clk 0:00:03]} 56. Kd4 {[%clk 0:00:02]}  Rxe3 {[%clk 0:00:04]} 57. Rxa2+ {[%clk 0:00:02]}  Kxg3 {[%clk 0:00:04]} 58. Kxe3 {[%clk 0:00:03]}  Kxh4 {[%clk 0:00:03]} 59. Kf4 {[%clk 0:00:03]}  Kh3 {[%clk 0:00:04]} 60. Kxf5 {[%clk 0:00:03]}  Kg3 {[%clk 0:00:04]} 61. Kxe4 {[%clk 0:00:03]}  h4 {[%clk 0:00:04]} 62. Ra3+ {[%clk 0:00:04]}  Kg2 {[%clk 0:00:04]} 63. Kf4 {[%clk 0:00:04]}  h3 {[%clk 0:00:04]} 64. Ra2+ {[%clk 0:00:04]}  Kf1 {[%clk 0:00:02]} 65. Kg3 {[%clk 0:00:05]}  h2 {[%clk 0:00:03]} 66. Ra1+ {[%clk 0:00:04]}  Ke2 {[%clk 0:00:03]} 67. Kxh2 {[%clk 0:00:05]}  Kd2 {[%clk 0:00:03]} 68. Kg3 {[%clk 0:00:06]}  Kd3 {[%clk 0:00:03]} 69. Re1 {[%clk 0:00:06]}  Kc2 {[%clk 0:00:04]} 70. Kf2 {[%clk 0:00:06]}  Kc3 {[%clk 0:00:05]} 71. Ke2 {[%clk 0:00:07]}  Kb2 {[%clk 0:00:06]} 72. Rd1 {[%clk 0:00:08]}  Kc3 {[%clk 0:00:07]} 73. Rc1+ {[%clk 0:00:07]}  Kb3 {[%clk 0:00:07]} 74. Kd2 {[%clk 0:00:08]}  Kb2 {[%clk 0:00:07]} 75. Rc3 {[%clk 0:00:08]}  Kb1 {[%clk 0:00:07]} 76. Rb3+ {[%clk 0:00:08]}  Ka2 {[%clk 0:00:07]} 77. Kc2 {[%clk 0:00:08]}  Ka1 {[%clk 0:00:08]} 78. Ra3# {[%clk 0:00:08]} 1-0


[Site "https://www.chess.com"]

[Event "Titled Tuesday Blitz May 4 2021"]
[White "Araujo Filho, Luiz Antonio Coel"]
[Black "Matthiesen, Martin"]
[WhiteFideId "2130661"]
[BlackFideId "1404067"]
[WhiteElo "2237"]
[BlackElo "2337"]
[Result "0-1"]
[Round "05"]
[TimeControl "180+1"]
[Date "2021.05.04"]
[WhiteClock "0:00:19"]
[BlackClock "0:01:34"]

1. d4 {[%clk 0:03:00]}  d5 {[%clk 0:02:59]} 2. Nf3 {[%clk 0:03:01]}  c6 {[%clk 0:02:59]} 3. e3 {[%clk 0:03:01]}  Nf6 {[%clk 0:02:59]} 4. Nbd2 {[%clk 0:03:00]}  Bf5 {[%clk 0:02:58]} 5. Be2 {[%clk 0:03:00]}  h6 {[%clk 0:02:58]} 6. b3 {[%clk 0:02:59]}  e6 {[%clk 0:02:58]} 7. Bb2 {[%clk 0:03:00]}  Bd6 {[%clk 0:02:58]} 8. O-O {[%clk 0:03:01]}  Nbd7 {[%clk 0:02:58]} 9. c4 {[%clk 0:03:01]}  O-O {[%clk 0:02:58]} 10. Rc1 {[%clk 0:02:59]}  Qe7 {[%clk 0:02:58]} 11. Ne5 {[%clk 0:02:59]}  Ba3 {[%clk 0:02:57]} 12. Bxa3 {[%clk 0:02:48]}  Qxa3 {[%clk 0:02:56]} 13. Ra1 {[%clk 0:02:47]}  Nxe5 {[%clk 0:02:55]} 14. dxe5 {[%clk 0:02:48]}  Ne4 {[%clk 0:02:49]} 15. Nxe4 {[%clk 0:02:32]}  Bxe4 {[%clk 0:02:49]} 16. f3 {[%clk 0:02:20]}  Bh7 {[%clk 0:02:46]} 17. cxd5 {[%clk 0:02:19]}  cxd5 {[%clk 0:02:46]} 18. Qd2 {[%clk 0:02:15]}  Rfc8 {[%clk 0:02:37]} 19. Rac1 {[%clk 0:02:13]}  a5 {[%clk 0:02:37]} 20. Bb5 {[%clk 0:01:31]}  Rc5 {[%clk 0:02:30]} 21. Rxc5 {[%clk 0:01:20]}  Qxc5 {[%clk 0:02:30]} 22. a4 {[%clk 0:01:19]}  Rc8 {[%clk 0:02:29]} 23. Qxa5 {[%clk 0:01:08]}  Qxe3+ {[%clk 0:02:28]} 24. Kh1 {[%clk 0:01:08]}  Bg6 {[%clk 0:02:19]} 25. Re1 {[%clk 0:00:36]}  Qxb3 {[%clk 0:02:13]} 26. Qb6 {[%clk 0:00:34]}  Qc3 {[%clk 0:02:10]} 27. Rg1 {[%clk 0:00:29]}  Qxe5 {[%clk 0:01:52]} 28. Qxb7 {[%clk 0:00:27]}  Qc7 {[%clk 0:01:39]} 29. Qxc7 {[%clk 0:00:19]}  Rxc7 {[%clk 0:01:40]} 30. a5 {[%clk 0:00:19]}  Rc5 {[%clk 0:01:34]} 0-1


[Site "https://www.chess.com"]

[Event "Titled Tuesday Blitz May 4 2021"]
[White "Arias, Juan Cruz"]
[Black "Kalajzic, Ivan"]
[WhiteFideId "118540"]
[BlackFideId "14506378"]
[WhiteElo "2083"]
[BlackElo "2163"]
[Result "1-0"]
[Round "05"]
[TimeControl "180+1"]
[Date "2021.05.04"]
[WhiteClock "0:00:29"]
[BlackClock "0:00:03"]

1. e4 {[%clk 0:03:00]}  Nc6 {[%clk 0:02:53]} 2. Nf3 {[%clk 0:02:59]}  d6 {[%clk 0:02:52]} 3. Nc3 {[%clk 0:02:57]}  Bg4 {[%clk 0:02:51]} 4. h3 {[%clk 0:02:56]}  Bxf3 {[%clk 0:02:46]} 5. Qxf3 {[%clk 0:02:57]}  g6 {[%clk 0:02:46]} 6. Bb5 {[%clk 0:02:54]}  Bg7 {[%clk 0:02:44]} 7. O-O {[%clk 0:02:54]}  e6 {[%clk 0:02:40]} 8. d3 {[%clk 0:02:45]}  Ne7 {[%clk 0:02:39]} 9. Qg3 {[%clk 0:02:36]}  O-O {[%clk 0:02:35]} 10. a3 {[%clk 0:02:24]}  Nd4 {[%clk 0:02:33]} 11. Ba4 {[%clk 0:02:18]}  c6 {[%clk 0:02:12]} 12. Be3 {[%clk 0:02:16]}  b5 {[%clk 0:02:11]} 13. Bb3 {[%clk 0:02:16]}  Nxb3 {[%clk 0:01:53]} 14. cxb3 {[%clk 0:02:17]}  d5 {[%clk 0:01:54]} 15. Bg5 {[%clk 0:02:12]}  Qd7 {[%clk 0:01:43]} 16. b4 {[%clk 0:02:09]}  a5 {[%clk 0:01:37]} 17. bxa5 {[%clk 0:02:09]}  Rxa5 {[%clk 0:01:36]} 18. Rfe1 {[%clk 0:02:07]}  Rfa8 {[%clk 0:01:32]} 19. Rac1 {[%clk 0:02:04]}  c5 {[%clk 0:01:10]} 20. Bxe7 {[%clk 0:02:04]}  d4 {[%clk 0:00:41]} 21. Bxc5 {[%clk 0:02:01]}  dxc3 {[%clk 0:00:40]} 22. bxc3 {[%clk 0:02:02]}  Bf8 {[%clk 0:00:35]} 23. Bb4 {[%clk 0:01:59]}  Bxb4 {[%clk 0:00:30]} 24. axb4 {[%clk 0:02:00]}  Ra2 {[%clk 0:00:30]} 25. d4 {[%clk 0:01:58]}  Qc6 {[%clk 0:00:23]} 26. Red1 {[%clk 0:01:54]}  Re2 {[%clk 0:00:22]} 27. d5 {[%clk 0:01:53]}  exd5 {[%clk 0:00:22]} 28. exd5 {[%clk 0:01:54]}  Qf6 {[%clk 0:00:23]} 29. d6 {[%clk 0:01:46]}  Raa2 {[%clk 0:00:23]} 30. d7 {[%clk 0:01:43]}  Qd8 {[%clk 0:00:19]} 31. c4 {[%clk 0:01:42]}  Rad2 {[%clk 0:00:18]} 32. Qg4 {[%clk 0:01:19]}  bxc4 {[%clk 0:00:09]} 33. Qxc4 {[%clk 0:01:15]}  Rxf2 {[%clk 0:00:08]} 34. Rxd2 {[%clk 0:01:13]}  Rxd2 {[%clk 0:00:05]} 35. Qc8 {[%clk 0:00:57]}  Rxd7 {[%clk 0:00:06]} 36. Qxd8+ {[%clk 0:00:57]}  Rxd8 {[%clk 0:00:07]} 37. b5 {[%clk 0:00:57]}  Rb8 {[%clk 0:00:08]} 38. Rb1 {[%clk 0:00:57]}  f5 {[%clk 0:00:08]} 39. Kf2 {[%clk 0:00:58]}  Kf7 {[%clk 0:00:09]} 40. Ke3 {[%clk 0:00:58]}  Ke6 {[%clk 0:00:10]} 41. Kd4 {[%clk 0:00:59]}  g5 {[%clk 0:00:10]} 42. Kc5 {[%clk 0:00:58]}  f4 {[%clk 0:00:10]} 43. b6 {[%clk 0:00:48]}  Kf5 {[%clk 0:00:09]} 44. Kc6 {[%clk 0:00:47]}  h5 {[%clk 0:00:09]} 45. Kc7 {[%clk 0:00:44]}  Rh8 {[%clk 0:00:09]} 46. b7 {[%clk 0:00:41]}  g4 {[%clk 0:00:09]} 47. hxg4+ {[%clk 0:00:41]}  hxg4 {[%clk 0:00:09]} 48. Rd1 {[%clk 0:00:40]}  f3 {[%clk 0:00:07]} 49. gxf3 {[%clk 0:00:40]}  gxf3 {[%clk 0:00:07]} 50. Rd8 {[%clk 0:00:33]}  Rxd8 {[%clk 0:00:03]} 51. Kxd8 {[%clk 0:00:33]}  f2 {[%clk 0:00:03]} 52. b8=Q {[%clk 0:00:33]}  f1=Q {[%clk 0:00:04]} 53. Qc8+ {[%clk 0:00:31]}  Ke4 {[%clk 0:00:03]} 54. Qe6+ {[%clk 0:00:30]}  Kd3 {[%clk 0:00:03]} 55. Qa6+ {[%clk 0:00:29]} 1-0


[Site "https://www.chess.com"]

[Event "Titled Tuesday Blitz May 4 2021"]
[White "Baches Garcia, Guillermo"]
[Black "Bach, Matthias"]
[WhiteFideId "2209764"]
[BlackFideId "4603168"]
[WhiteElo "2440"]
[BlackElo "2213"]
[Result "1/2-1/2"]
[Round "05"]
[TimeControl "180+1"]
[Date "2021.05.04"]
[WhiteClock "0:01:33"]
[BlackClock "0:01:49"]

1. d4 {[%clk 0:03:00]}  Nf6 {[%clk 0:02:59]} 2. c4 {[%clk 0:03:01]}  c5 {[%clk 0:02:59]} 3. d5 {[%clk 0:03:00]}  e6 {[%clk 0:03:00]} 4. Nc3 {[%clk 0:03:00]}  exd5 {[%clk 0:03:00]} 5. cxd5 {[%clk 0:03:00]}  d6 {[%clk 0:03:01]} 6. Nf3 {[%clk 0:03:00]}  g6 {[%clk 0:03:01]} 7. h3 {[%clk 0:03:01]}  Bg7 {[%clk 0:03:01]} 8. Bf4 {[%clk 0:03:01]}  O-O {[%clk 0:03:00]} 9. e3 {[%clk 0:03:01]}  Re8 {[%clk 0:02:55]} 10. Be2 {[%clk 0:03:01]}  a6 {[%clk 0:02:49]} 11. a4 {[%clk 0:03:01]}  Bf5 {[%clk 0:02:48]} 12. Nd2 {[%clk 0:02:55]}  Ne4 {[%clk 0:02:45]} 13. Ncxe4 {[%clk 0:02:36]}  Bxe4 {[%clk 0:02:43]} 14. O-O {[%clk 0:02:26]}  Bxd5 {[%clk 0:02:30]} 15. Nc4 {[%clk 0:02:15]}  Bxc4 {[%clk 0:02:23]} 16. Bxc4 {[%clk 0:02:15]}  Nc6 {[%clk 0:02:22]} 17. Qxd6 {[%clk 0:02:08]}  Qxd6 {[%clk 0:02:08]} 18. Bxd6 {[%clk 0:02:09]}  Na5 {[%clk 0:02:08]} 19. Ba2 {[%clk 0:01:49]}  c4 {[%clk 0:01:49]} 20. Rac1 {[%clk 0:01:33]} 1/2-1/2


[Site "https://www.chess.com"]

[Event "Titled Tuesday Blitz May 4 2021"]
[White "Baglan, Esat"]
[Black "Sapunov, Evgeny"]
[WhiteFideId "6309216"]
[BlackFideId "4126661"]
[WhiteElo "2107"]
[BlackElo "2470"]
[Result "0-1"]
[Round "05"]
[TimeControl "180+1"]
[Date "2021.05.04"]
[WhiteClock "0:02:37"]
[BlackClock "0:02:28"]

1. e4 {[%clk 0:02:49]}  c5 {[%clk 0:02:59]} 2. Nc3 {[%clk 0:02:47]}  d6 {[%clk 0:02:59]} 3. d4 {[%clk 0:02:46]}  cxd4 {[%clk 0:02:59]} 4. Qxd4 {[%clk 0:02:47]}  a6 {[%clk 0:03:00]} 5. b3 {[%clk 0:02:47]}  e6 {[%clk 0:02:56]} 6. Bb2 {[%clk 0:02:47]}  Nc6 {[%clk 0:02:56]} 7. Qd2 {[%clk 0:02:47]}  Nf6 {[%clk 0:02:57]} 8. O-O-O {[%clk 0:02:47]}  b5 {[%clk 0:02:55]} 9. f3 {[%clk 0:02:47]}  Be7 {[%clk 0:02:55]} 10. Kb1 {[%clk 0:02:47]}  O-O {[%clk 0:02:55]} 11. g3 {[%clk 0:02:47]}  b4 {[%clk 0:02:53]} 12. Nce2 {[%clk 0:02:47]}  a5 {[%clk 0:02:53]} 13. g4 {[%clk 0:02:44]}  Qc7 {[%clk 0:02:51]} 14. g5 {[%clk 0:02:45]}  Nd7 {[%clk 0:02:51]} 15. h4 {[%clk 0:02:44]}  a4 {[%clk 0:02:51]} 16. h5 {[%clk 0:02:45]}  axb3 {[%clk 0:02:42]} 17. axb3 {[%clk 0:02:38]}  Qa5 {[%clk 0:02:35]} 18. Nc1 {[%clk 0:02:37]}  Bxg5 {[%clk 0:02:29]} 19. Qg2 {[%clk 0:02:37]}  Bf6 {[%clk 0:02:28]} 0-1


[Site "https://www.chess.com"]